fUSD/lending_fUSD_20250421
["ID","MTS","AMOUNT","RATE_DAILY","PERIOD"]
[358506831,1745220645296,-500.0,0.00063561,120]
[358506832,1745220645305,-500.0,0.00063561,120]
[358506833,1745220645314,-500.0,0.00063561,120]
[358506834,1745220645323,-500.0,0.00063561,120]
[358506835,1745220645332,-500.0,0.00063561,120]
[358506836,1745220645340,-500.0,0.00063561,120]
[358506837,1745220645349,-500.0,0.00063561,2]
[358506838,1745220645358,-500.0,0.00063561,120]
[358506839,1745220645367,-500.0,0.00063561,120]
[358506840,1745220645376,-500.0,0.00063561,120]
[358506841,1745220645385,-500.0,0.00063561,120]
[358506842,1745220645394,-500.0,0.00063561,120]
[358506843,1745220645403,-500.0,0.00063561,120]
[358506844,1745220645411,-533.96908051,0.00063561,120]
[358506845,1745220645420,-697.87,0.00063561,120]
[358506846,1745220645429,-500.0,0.00063561,120]
[358506847,1745220645438,-500.0,0.00063561,120]
[358506848,1745220645448,-189.55287823,0.00063561,120]
[358506849,1745220645457,-538.61071507,0.00063561,120]
[358506850,1745220645466,-500.0,0.00063561,120]
[358506851,1745220645474,-500.0,0.00063561,120]
[358506852,1745220645484,-500.0,0.00063561,120]
[358506853,1745220645493,-500.0,0.00063561,120]
[358506854,1745220645502,-500.0,0.00063561,120]
[358506855,1745220645511,-500.0,0.00063561,120]
[358506856,1745220645519,-500.0,0.00063561,120]
[358506857,1745220645529,-500.0,0.00063561,120]
[358506858,1745220645537,-500.0,0.00063561,120]
[358506859,1745220645546,-500.0,0.00063561,120]
[358506860,1745220645555,-500.0,0.00063561,120]
[358506861,1745220645564,-500.0,0.00063561,12]
[358506862,1745220645573,-253.80695539,0.00063561,14]
[358506863,1745220645583,-500.0,0.00063561,120]
[358506864,1745220645591,-500.0,0.00063561,120]
[358506865,1745220645600,-478.9,0.00063561,120]
[358506866,1745220645609,-500.0,0.00063561,120]
[358506867,1745220645618,-500.0,0.00063561,30]
[358506868,1745220645627,-500.0,0.00063561,120]
[358506869,1745220645636,-500.0,0.00063561,120]
[358506870,1745220645645,-526.93,0.00063561,120]
[358506871,1745220645654,-494.89802384,0.00063561,120]
[358506872,1745220645663,-500.0,0.00063561,120]
[358506873,1745220645672,-500.0,0.00063561,120]
[358506874,1745220645681,-500.0,0.00063561,120]
[358506875,1745220645690,-500.0,0.00063561,120]
[358506876,1745220645699,-500.0,0.00063561,120]
[358506877,1745220645708,-500.0,0.00063561,120]
[358506878,1745220645717,-637.2,0.00063561,120]
[358506879,1745220645727,-500.0,0.00063561,120]
[358506880,1745220645736,-500.0,0.00063561,120]
[358506881,1745220645745,-1041.44,0.00063561,120]
[358506883,1745220645755,-500.0,0.00063561,120]
[358506884,1745220645764,-500.0,0.00063561,120]
[358506885,1745220645773,-498.00699001,0.00063561,120]
[358506886,1745220645783,-599.74,0.00063561,120]
[358506887,1745220645791,-500.0,0.00063561,120]
[358506888,1745220645800,-500.0,0.00063561,120]
[358506889,1745220645809,-500.0,0.00063561,120]
[358506890,1745220645818,-500.0,0.00063561,120]
[358506891,1745220645827,-500.0,0.00063561,120]
[358506892,1745220645836,-963.63,0.00063561,2]
[358506893,1745220645845,-500.0,0.00063561,120]
[358506894,1745220645855,-702.45,0.00063561,120]
[358506895,1745220645863,-500.0,0.00063561,120]
[358506896,1745220645873,-500.0,0.00063561,120]
[358506897,1745220645883,-500.0,0.00063561,120]
[358506898,1745220645893,-500.0,0.00063561,120]
[358506899,1745220645902,-500.0,0.00063561,120]
[358506900,1745220645911,-4550.52,0.00063561,120]
[358506901,1745220645921,-4202.91,0.00063561,7]
[358506902,1745220645932,-500.0,0.00063561,120]
[358506903,1745220645944,-2550.2809242,0.00063567,15]
[358506904,1745220645953,-237.08420292,0.00063615,7]
[358506905,1745220645963,-513.119648,0.00063615,120]
[358506906,1745220645972,-513.119648,0.00063615,120]
[358506907,1745220645981,-160.071736,0.00063615,120]
[358506908,1745220645991,-500.0,0.0006362,120]
[358506909,1745220646000,-199.66817015,0.00063624,120]
[358506910,1745220646009,-4321.438,0.00063625,120]
[358506911,1745220646019,-4321.438,0.00063625,120]
[358506912,1745220646028,-4321.438,0.00063625,120]
[358506913,1745220646038,-4321.439,0.00063625,120]
[358506914,1745220646047,-4321.438,0.00063625,120]
[358506915,1745220646056,-151.0,0.00063625,2]
[358506916,1745220646066,-164.686311,0.00063625,120]
[358506917,1745220646075,-151.0,0.00063625,120]
[358506918,1745220646085,-292.359139,0.00063625,120]
[358506919,1745220646094,-151.0,0.00063625,120]
[358506920,1745220646103,-500.0,0.00063799,120]
[358506921,1745220646113,-2000.0,0.000638,120]
[358506922,1745220646124,-3978.0,0.00063965,120]
[358506923,1745220646135,-2077.646,0.00063965,120]
[358506924,1745220646144,-522.659,0.00063965,120]
[358506925,1745220646154,-1352.038,0.00063965,120]
[358506926,1745220646163,-688.695,0.00063965,120]
[358506927,1745220646174,-500.0,0.00064109,120]
[358506928,1745220646183,-500.0,0.00064109,120]
[358506929,1745220646192,-500.0,0.00064109,120]
[358506930,1745220646202,-500.0,0.00064109,120]
[358506931,1745220646212,-500.0,0.00064109,2]
[358506932,1745220646221,-500.0,0.00064109,120]
[358506933,1745220646231,-500.0,0.00064109,120]
[358506934,1745220646240,-500.0,0.00064109,120]
[358506935,1745220646250,-500.0,0.00064109,120]
[358506936,1745220646259,-500.0,0.00064109,120]
[358506937,1745220646269,-500.0,0.00064109,120]
[358506938,1745220646278,-697.87,0.00064109,120]
[358506939,1745220646288,-500.0,0.00064109,120]
[358506940,1745220646297,-500.0,0.00064109,120]
[358506941,1745220646307,-500.0,0.00064109,120]
[358506942,1745220646316,-165.41916488,0.00064109,120]
[358506943,1745220646325,-500.0,0.00064109,120]
[358506944,1745220646336,-500.0,0.00064109,120]
[358506945,1745220646346,-500.0,0.00064109,120]
[358506946,1745220646356,-500.0,0.00064109,120]
[358506947,1745220646366,-500.0,0.00064109,12]
[358506948,1745220646375,-500.0,0.00064109,120]
[358506949,1745220646385,-500.0,0.00064109,120]
[358506950,1745220646396,-500.0,0.00064109,120]
[358506951,1745220646406,-526.93,0.00064109,120]
[358506952,1745220646415,-500.0,0.00064109,120]
[358506953,1745220646424,-500.0,0.00064109,120]
[358506954,1745220646434,-500.0,0.00064109,120]
[358506955,1745220646443,-500.0,0.00064109,120]
[358506956,1745220646452,-500.0,0.00064109,120]
[358506957,1745220646462,-637.2,0.00064109,120]
[358506958,1745220646471,-500.0,0.00064109,120]
[358506959,1745220646481,-500.0,0.00064109,120]
[358506960,1745220646491,-1041.44,0.00064109,120]
[358506961,1745220646500,-500.0,0.00064109,120]
[358506962,1745220646510,-500.0,0.00064109,120]
[358506963,1745220646519,-599.74,0.00064109,120]
[358506964,1745220646529,-500.0,0.00064109,120]
[358506965,1745220646539,-500.0,0.00064109,120]
[358506966,1745220646549,-582.29981595,0.00064109,120]
[358506967,1745220646559,-500.0,0.00064109,120]
[358506968,1745220646568,-963.63,0.00064109,2]
[358506969,1745220646577,-500.0,0.00064109,120]
[358506970,1745220646587,-702.45,0.00064109,120]
[358506971,1745220646596,-500.0,0.00064109,120]
[358506972,1745220646606,-500.0,0.00064109,120]
[358506973,1745220646616,-500.0,0.00064109,120]
[358506974,1745220646626,-500.0,0.00064109,120]
[358506975,1745220646635,-500.0,0.00064109,120]
[358506976,1745220646651,-4550.52,0.00064109,120]
[358506977,1745220646660,-4202.91,0.00064109,7]
[358506978,1745220646670,-500.0,0.00064109,120]
[358506979,1745220646679,-722.17,0.00064284,2]
[358506980,1745220646689,-186.72856282,0.00064557,98]
[358506981,1745220646699,-500.0,0.00064643,120]
[358506982,1745220646708,-500.0,0.00064657,120]
[358506983,1745220646718,-500.0,0.00064657,120]
[358506984,1745220646728,-500.0,0.00064657,120]
[358506985,1745220646737,-500.0,0.00064657,120]
[358506986,1745220646746,-500.0,0.00064657,2]
[358506987,1745220646755,-500.0,0.00064657,120]
[358506988,1745220646765,-500.0,0.00064657,120]
[358506989,1745220646775,-500.0,0.00064657,120]
[358506990,1745220646784,-161.86,0.00064657,120]
[358506991,1745220646794,-500.0,0.00064657,120]
[358506992,1745220646803,-500.0,0.00064657,120]
[358506993,1745220646813,-697.87,0.00064657,120]
[358506994,1745220646822,-500.0,0.00064657,120]
[358506995,1745220646832,-500.0,0.00064657,120]
[358506996,1745220646841,-500.0,0.00064657,120]
[358506997,1745220646850,-500.0,0.00064657,120]
[358506998,1745220646859,-500.0,0.00064657,120]
[358506999,1745220646869,-500.0,0.00064657,120]
[358507000,1745220646878,-500.0,0.00064657,120]
[358507001,1745220646888,-500.0,0.00064657,12]
[358507002,1745220646898,-500.0,0.00064657,120]
[358507003,1745220646907,-500.0,0.00064657,120]
[358507004,1745220646918,-500.0,0.00064657,120]
[358507005,1745220646927,-526.93,0.00064657,120]
[358507006,1745220646937,-500.0,0.00064657,120]
[358507007,1745220646947,-500.0,0.00064657,120]
[358507008,1745220646957,-500.0,0.00064657,120]
[358507009,1745220646967,-500.0,0.00064657,120]
[358507010,1745220646976,-500.0,0.00064657,120]
[358507011,1745220646986,-637.2,0.00064657,120]
[358507012,1745220646995,-500.0,0.00064657,120]
[358507013,1745220647005,-500.0,0.00064657,120]
[358507014,1745220647014,-1041.44,0.00064657,120]
[358507015,1745220647024,-500.0,0.00064657,120]
[358507016,1745220647034,-500.0,0.00064657,120]
[358507017,1745220647044,-599.74,0.00064657,120]
[358507018,1745220647054,-500.0,0.00064657,120]
[358507019,1745220647064,-500.0,0.00064657,120]
[358507020,1745220647074,-500.0,0.00064657,120]
[358507021,1745220647084,-963.63,0.00064657,2]
[358507022,1745220647094,-500.0,0.00064657,120]
[358507023,1745220647106,-702.45,0.00064657,120]
[358507024,1745220647115,-500.0,0.00064657,120]
[358507025,1745220647128,-500.0,0.00064657,120]
[358507026,1745220647138,-500.0,0.00064657,120]
[358507027,1745220647148,-500.0,0.00064657,120]
[358507028,1745220647159,-500.0,0.00064657,120]
[358507029,1745220647169,-4550.52,0.00064657,120]
[358507030,1745220647179,-4202.91,0.00064657,7]
[358507031,1745220647188,-500.0,0.00064657,120]
[358507032,1745220647198,-866.5532481,0.00064695,47]
[358507033,1745220647209,-217.81,0.000647,60]
[358507034,1745220647219,-500.0,0.00064838,120]
[358507035,1745220647228,-946.78563424,0.000649,30]
[358507036,1745220647238,-224.975,0.00064999,120]
[358507037,1745220647247,-1069.00917062,0.00065,120]
[358507038,1745220647257,-500.0,0.00065205,120]
[358507039,1745220647266,-500.0,0.00065205,120]
[358507040,1745220647275,-500.0,0.00065205,120]
[358507041,1745220647285,-500.0,0.00065205,2]
[358507042,1745220647295,-500.0,0.00065205,120]
[358507043,1745220647304,-500.0,0.00065205,120]
[358507044,1745220647314,-500.0,0.00065205,120]
[358507045,1745220647324,-500.0,0.00065205,120]
[358507046,1745220647334,-697.87,0.00065205,120]
[358507047,1745220647344,-500.0,0.00065205,120]
[358507048,1745220647354,-500.0,0.00065205,120]
[358507049,1745220647363,-500.0,0.00065205,120]
[358507050,1745220647373,-500.0,0.00065205,120]
[358507051,1745220647383,-500.0,0.00065205,120]
[358507052,1745220647393,-500.0,0.00065205,120]
[358507053,1745220647403,-500.0,0.00065205,120]
[358507054,1745220647412,-500.0,0.00065205,12]
[358507055,1745220647422,-500.0,0.00065205,120]
[358507056,1745220647431,-500.0,0.00065205,120]
[358507057,1745220647441,-500.0,0.00065205,120]
[358507058,1745220647451,-526.93,0.00065205,120]
[358507059,1745220647460,-500.0,0.00065205,120]
[358507060,1745220647471,-500.0,0.00065205,120]
[358507061,1745220647480,-500.0,0.00065205,120]
[358507062,1745220647490,-500.0,0.00065205,120]
[358507063,1745220647499,-500.0,0.00065205,120]
[358507064,1745220647509,-637.2,0.00065205,120]
[358507065,1745220647518,-500.0,0.00065205,120]
[358507066,1745220647528,-500.0,0.00065205,120]
[358507067,1745220647538,-1041.44,0.00065205,120]
[358507068,1745220647548,-500.0,0.00065205,120]
[358507069,1745220647557,-500.0,0.00065205,120]
[358507070,1745220647567,-599.74,0.00065205,120]
[358507071,1745220647577,-500.0,0.00065205,120]
[358507072,1745220647587,-500.0,0.00065205,120]
[358507073,1745220647597,-500.0,0.00065205,120]
[358507074,1745220647607,-963.63,0.00065205,2]
[358507075,1745220647616,-500.0,0.00065205,120]
[358507076,1745220647626,-702.45,0.00065205,120]
[358507077,1745220647635,-500.0,0.00065205,120]
[358507078,1745220647646,-205.836583,0.00065205,120]
[358507079,1745220647656,-151.0,0.00065205,120]
[358507080,1745220647665,-151.0,0.00065205,120]
[358507081,1745220647674,-500.0,0.00065205,120]
[358507082,1745220647684,-500.0,0.00065205,120]
[358507083,1745220647693,-500.0,0.00065205,120]
[358507084,1745220647702,-500.0,0.00065205,120]
[358507085,1745220647712,-4550.52,0.00065205,120]
[358507086,1745220647721,-4202.91,0.00065205,7]
[358507087,1745220647731,-500.0,0.00065205,120]
[358507088,1745220647740,-443.36,0.000654,2]
[358507089,1745220647750,-460.36,0.000654,2]
[358507090,1745220647759,-644.88590681,0.00065642,15]
[358507091,1745220647769,-164.182375,0.00065688,120]
[358507092,1745220647778,-2550.2809242,0.00065733,15]
[358507093,1745220647788,-1364.83,0.00065752,120]
[358507094,1745220647799,-500.0,0.00065753,120]
[358507095,1745220647809,-500.0,0.00065753,120]
[358507096,1745220647819,-500.0,0.00065753,120]
[358507097,1745220647829,-500.0,0.00065753,2]
[358507098,1745220647840,-500.0,0.00065753,120]
[358507099,1745220647850,-500.0,0.00065753,120]
[358507100,1745220647861,-500.0,0.00065753,120]
[358507101,1745220647871,-500.0,0.00065753,120]
[358507102,1745220647988,-697.87,0.00065753,120]
[358507103,1745220647998,-500.0,0.00065753,120]
[358507104,1745220648009,-500.0,0.00065753,120]
[358507105,1745220648018,-500.0,0.00065753,120]
[358507106,1745220648028,-500.0,0.00065753,120]
[358507107,1745220648038,-500.0,0.00065753,120]
[358507108,1745220648048,-500.0,0.00065753,120]
[358507109,1745220648058,-500.0,0.00065753,120]
[358507110,1745220648067,-407.10885366,0.00065753,12]
[358507111,1745220648077,-500.0,0.00065753,120]
[358507112,1745220648086,-500.0,0.00065753,120]
[358507113,1745220648096,-500.0,0.00065753,120]
[358507114,1745220648105,-526.93,0.00065753,120]
[358507115,1745220648115,-500.0,0.00065753,120]
[358507116,1745220648127,-500.0,0.00065753,120]
[358507117,1745220648137,-500.0,0.00065753,120]
[358507118,1745220648147,-500.0,0.00065753,120]
[358507119,1745220648156,-500.0,0.00065753,120]
[358507120,1745220648166,-637.2,0.00065753,120]
[358507121,1745220648176,-500.0,0.00065753,120]
[358507122,1745220648186,-500.0,0.00065753,120]
[358507123,1745220648196,-1041.44,0.00065753,120]
[358507124,1745220648206,-500.0,0.00065753,120]
[358507125,1745220648216,-500.0,0.00065753,120]
[358507126,1745220648225,-599.74,0.00065753,120]
[358507127,1745220648234,-500.0,0.00065753,120]
[358507128,1745220648244,-500.0,0.00065753,120]
[358507129,1745220648253,-500.0,0.00065753,120]
[358507130,1745220648263,-963.63,0.00065753,2]
[358507131,1745220648272,-175.85069784,0.00065753,120]
[358507132,1745220648281,-702.45,0.00065753,120]
[358507133,1745220648290,-500.0,0.00065753,120]
[358507134,1745220648299,-500.0,0.00065753,120]
[358507135,1745220648307,-500.0,0.00065753,120]
[358507136,1745220648316,-500.0,0.00065753,120]
[358507137,1745220648326,-150.0,0.00065753,120]
[358507138,1745220648335,-500.0,0.00065753,120]
[358507139,1745220648344,-150.0,0.00065753,120]
[358507140,1745220648353,-150.0,0.00065753,120]
[358507141,1745220648363,-150.0,0.00065753,120]
[358507142,1745220648372,-150.0,0.00065753,120]
[358507143,1745220648381,-4550.52,0.00065753,120]
[358507144,1745220648391,-151.61035404,0.00065753,120]
[358507145,1745220648401,-4202.91,0.00065753,7]
[358507146,1745220648410,-500.0,0.00065753,120]
[358507147,1745220648420,-500.0,0.00065753,120]
[358507148,1745220648429,-178.93418074,0.0006588,16]
[358507149,1745220648439,-3498.78438533,0.000659,24]
[358507150,1745220648564,-2683.6833661,0.000659,24]
[358507151,1745220648582,-456.500001,0.000659,24]
[358507152,1745220648593,-736.57390145,0.000659,24]
[358507153,1745220648605,-1026.92935832,0.000659,24]
[358507154,1745220648616,-368.47889,0.000659,24]
[358507155,1745220648627,-680.891175,0.000659,24]
[358507156,1745220648639,-528.69395831,0.000659,24]
[358507157,1745220648651,-1085.09011866,0.000659,24]
[358507158,1745220648663,-523.85245532,0.000659,24]
[358507159,1745220648686,-110.52239051,0.000659,24]
[358507160,1745220648695,-443.36,0.00066,2]
[358507161,1745220648704,-460.36,0.00066,2]
[358507162,1745220648714,-500.0,0.00066109,120]
[358507163,1745220648723,-513.119648,0.00066109,120]
[358507164,1745220648733,-513.119648,0.00066109,120]
[358507165,1745220648742,-150.0,0.00066301,120]
[358507166,1745220648751,-502.7939373,0.00066301,120]
[358507167,1745220648760,-500.0,0.00066301,120]
[358507168,1745220648770,-500.0,0.00066301,120]
[358507169,1745220648779,-500.0,0.00066301,120]
[358507170,1745220648788,-500.0,0.00066301,2]
[358507171,1745220648798,-500.0,0.00066301,120]
[358507172,1745220648807,-500.0,0.00066301,120]
[358507173,1745220648816,-500.0,0.00066301,120]
[358507174,1745220648826,-500.0,0.00066301,120]
[358507175,1745220648835,-697.87,0.00066301,120]
[358507176,1745220648844,-500.0,0.00066301,120]
[358507177,1745220648853,-500.0,0.00066301,120]
[358507178,1745220648863,-500.0,0.00066301,120]
[358507179,1745220648873,-500.0,0.00066301,120]
[358507180,1745220648882,-500.0,0.00066301,120]
[358507181,1745220648892,-500.0,0.00066301,120]
[358507182,1745220648901,-500.0,0.00066301,120]
[358507183,1745220648910,-500.0,0.00066301,120]
[358507184,1745220648920,-500.0,0.00066301,120]
[358507185,1745220648930,-500.0,0.00066301,120]
[358507186,1745220648939,-526.93,0.00066301,120]
[358507187,1745220648950,-500.0,0.00066301,120]
[358507188,1745220648960,-500.0,0.00066301,120]
[358507189,1745220648970,-500.0,0.00066301,120]
[358507190,1745220648979,-500.0,0.00066301,120]
[358507191,1745220648989,-151.0,0.00066301,120]
[358507192,1745220648999,-500.0,0.00066301,120]
[358507193,1745220649008,-637.2,0.00066301,120]
[358507194,1745220649019,-500.0,0.00066301,120]
[358507195,1745220649028,-500.0,0.00066301,120]
[358507196,1745220649039,-1041.44,0.00066301,120]
[358507197,1745220649049,-500.0,0.00066301,120]
[358507198,1745220649059,-500.0,0.00066301,120]
[358507199,1745220649069,-599.74,0.00066301,120]
[358507200,1745220649078,-500.0,0.00066301,120]
[358507201,1745220649088,-500.0,0.00066301,120]
[358507202,1745220649098,-500.0,0.00066301,120]
[358507203,1745220649107,-963.63,0.00066301,2]
[358507204,1745220649117,-702.45,0.00066301,120]
[358507205,1745220649129,-500.0,0.00066301,120]
[358507206,1745220649139,-500.0,0.00066301,120]
[358507207,1745220649148,-500.0,0.00066301,120]
[358507208,1745220649158,-500.0,0.00066301,120]
[358507209,1745220649169,-500.0,0.00066301,120]
[358507210,1745220649179,-4550.52,0.00066301,120]
[358507211,1745220649188,-4202.91,0.00066301,7]
[358507212,1745220649197,-500.0,0.00066301,120]
[358507213,1745220649208,-467.65539762,0.00066403,120]
[358507214,1745220649220,-271.78126578,0.00066403,120]
[358507215,1745220649230,-1000.0,0.00066449,20]
[358507216,1745220649240,-700.0,0.00066455,120]
[358507217,1745220649249,-159.84590036,0.00066476,50]
[358507218,1745220649260,-706.70734774,0.00066476,50]
[358507219,1745220649270,-722.17,0.00066547,2]
[358507220,1745220649279,-71.12265226,0.0006655,120]
[358507221,1745220649460,-291.882179,0.00065205,120]
[358507222,1745220649470,-110.1518837,0.0006655,120]
[358507223,1745220649964,-378.07066527,0.0005469,2]
[358507224,1745220649978,-2510.23223473,0.0005469,2]
[358507225,1745220649988,-23.17476104,0.0006655,120]
[358507226,1745220649997,-164.182375,0.0006655,120]
[358507227,1745220650006,-157.325948,0.0006655,120]
[358507228,1745220650015,-172.11128017,0.00066576,120]
[358507229,1745220650025,-150.0,0.00066576,120]
[358507230,1745220650034,-150.0,0.00066576,120]
[358507231,1745220650044,-150.0,0.00066576,120]
[358507232,1745220650054,-150.0,0.00066576,120]
[358507233,1745220650063,-150.0,0.00066576,120]
[358507234,1745220650072,-150.0,0.00066576,120]
[358507235,1745220650082,-1000.0,0.00066586,20]
[358507236,1745220650091,-2000.0,0.000666,120]
[358507237,1745220650101,-172.11128017,0.0006665,120]
[358507238,1745220650111,-365.61306793,0.00066692,120]
[358507239,1745220650120,-217.81,0.000667,60]
[358507240,1745220650133,-151.0,0.00066703,2]
[358507241,1745220650143,-36170.9236,0.00066703,2]
[358507242,1745220650151,-1000.0,0.00066723,20]
[358507243,1745220650162,-172.11128017,0.00066725,120]
[358507244,1745220650171,-151.0,0.00066739,120]
[358507245,1745220650181,-151.0,0.00066739,120]
[358507246,1745220650190,-1364.83,0.00066748,120]
[358507247,1745220650200,-151.0,0.00066749,120]
[358507248,1745220650210,-153.0,0.00066778,60]
[358507249,1745220650219,-153.0,0.00066778,60]
[358507250,1745220650228,-153.0,0.00066789,60]
[358507251,1745220650238,-172.11128017,0.000668,120]
[358507252,1745220650247,-153.0,0.000668,60]
[358507253,1745220650256,-153.0,0.000668,60]
[358507254,1745220650265,-153.0,0.00066811,60]
[358507255,1745220650274,-153.0,0.00066822,60]
[358507256,1745220650283,-151.0,0.00066839,120]
[358507257,1745220650292,-152.800737,0.00066839,120]
[358507258,1745220650302,-150.0,0.00066849,120]
[358507259,1745220650311,-500.0,0.00066849,120]
[358507260,1745220650320,-500.0,0.00066849,120]
[358507261,1745220650329,-500.0,0.00066849,120]
[358507262,1745220650338,-273.19044621,0.00066849,2]
[358507263,1745220650347,-500.0,0.00066849,120]
[358507264,1745220650356,-500.0,0.00066849,120]
[358507265,1745220650366,-352.92043567,0.00066849,120]
[358507266,1745220650375,-500.0,0.00066849,120]
[358507267,1745220650384,-697.87,0.00066849,120]
[358507268,1745220650394,-500.0,0.00066849,120]
[358507269,1745220650404,-500.0,0.00066849,120]
[358507270,1745220650423,-500.0,0.00066849,120]
[358507271,1745220650432,-500.0,0.00066849,120]
[358507272,1745220650442,-500.0,0.00066849,120]
[358507273,1745220650451,-175.47828671,0.00066849,120]
[358507274,1745220650460,-500.0,0.00066849,120]
[358507275,1745220650470,-500.0,0.00066849,120]
[358507276,1745220650479,-500.0,0.00066849,120]
[358507277,1745220650488,-500.0,0.00066849,120]
[358507278,1745220650497,-526.93,0.00066849,120]
[358507279,1745220650507,-500.0,0.00066849,120]
[358507280,1745220650517,-500.0,0.00066849,120]
[358507281,1745220650526,-500.0,0.00066849,120]
[358507282,1745220650536,-500.0,0.00066849,120]
[358507283,1745220650546,-500.0,0.00066849,120]
[358507284,1745220650556,-637.2,0.00066849,120]
[358507285,1745220650566,-500.0,0.00066849,120]
[358507286,1745220650575,-500.0,0.00066849,120]
[358507287,1745220650585,-1041.44,0.00066849,120]
[358507288,1745220650594,-500.0,0.00066849,120]
[358507289,1745220650604,-500.0,0.00066849,120]
[358507290,1745220650759,-599.74,0.00066849,120]
[358507291,1745220650770,-500.0,0.00066849,120]
[358507292,1745220650780,-500.0,0.00066849,120]
[358507293,1745220650789,-500.0,0.00066849,120]
[358507294,1745220650799,-963.63,0.00066849,2]
[358507295,1745220650808,-702.45,0.00066849,120]
[358507296,1745220650817,-500.0,0.00066849,120]
[358507297,1745220650827,-500.0,0.00066849,120]
[358507298,1745220650836,-500.0,0.00066849,120]
[358507299,1745220650846,-500.0,0.00066849,120]
[358507300,1745220650855,-500.0,0.00066849,120]
[358507301,1745220650865,-4550.52,0.00066849,120]
[358507302,1745220650875,-4202.91,0.00066849,7]
[358507303,1745220650884,-500.0,0.00066849,120]
[358507304,1745220650894,-1000.0,0.0006686,20]
[358507305,1745220650904,-634.0,0.0006686,20]
[358507306,1745220650913,-264.84331181,0.00066873,120]
[358507307,1745220650923,-172.11128017,0.00066875,120]
[358507308,1745220650933,-166.766776,0.00066905,60]
[358507309,1745220650943,-172.11128017,0.00066949,120]
[358507310,1745220650953,-200.0,0.00066964,120]
[358507311,1745220650964,-150.0,0.00067011,120]
[358507312,1745220650974,-172.11128017,0.00067024,120]
[358507313,1745220650983,-150.0,0.00067069,120]
[358507314,1745220650992,-172.11128017,0.00067099,120]
[358507315,1745220651002,-230.72,0.000671,7]
[358507316,1745220651011,-172.11128017,0.00067173,120]
[358507317,1745220651021,-443.36,0.000672,2]
[358507318,1745220651030,-460.36,0.000672,2]
[358507319,1745220651040,-172.11128017,0.00067248,120]
[358507320,1745220651050,-150.0,0.00067248,120]
[358507321,1745220651059,-152.85,0.000673,69]
[358507322,1745220651069,-152.85,0.000673,69]
[358507323,1745220651080,-152.85,0.000673,69]
[358507324,1745220651090,-152.85,0.000673,69]
[358507325,1745220651099,-172.11128017,0.00067323,120]
[358507326,1745220651109,-200.0,0.00067397,120]
[358507327,1745220651119,-477.47364158,0.00067397,120]
[358507328,1745220651130,-500.0,0.00067397,120]
[358507329,1745220651139,-500.0,0.00067397,120]
[358507330,1745220651149,-500.0,0.00067397,120]
[358507331,1745220651159,-500.0,0.00067397,120]